bitfinex/quotes_SOLUSD_20241021
["timestamp","ask_amount","ask_price","bid_price","bid_amount"]
[1729513294850,5.9945,166.82,166.78,14.9893]
[1729513295151,5.9945,166.82,166.78,20.9851]
[1729513295853,5.9941,166.83,166.78,20.9851]
[1729513301068,23.776884,166.85,166.76,5.9963]
[1729513301237,21.5285,166.81,166.76,5.9963]
[1729513304661,28.1358,166.81,166.76,5.9963]
[1729513309446,22.7121,166.85,166.72,0.1]
[1729513309651,22.7121,166.85,166.72,5.1]
[1729513309962,28.7057,166.85,166.79,5.9952]
[1729513310765,28.7057,166.85,166.8,5.9951]
[1729513311364,23.776884,166.84,166.8,5.9951]
[1729513311655,29.770684,166.84,166.79,20.9843]
[1729513313243,5.9942,166.83,166.79,20.9843]
[1729513313565,5.9942,166.83,166.79,14.9889]
[1729513313959,23.776884,166.84,166.76,14.9912]
[1729513314142,5.9952,166.8,166.76,14.9912]
[1729513314345,23.776884,166.79,166.76,14.9912]
[1729513314768,23.776884,166.79,166.75,5.9969]
[1729513317051,39.790084,166.79,166.75,5.9969]
[1729513317256,45.849484,166.79,166.75,5.9969]
[1729513320255,23.776884,166.82,166.79,5.9955]
[1729513320571,16.3929,166.83,166.81,5.9946]
[1729513320871,16.3929,166.83,166.8,14.9876]
[1729513321058,16.3929,166.83,166.8,20.9827]
[1729513325275,16.3929,166.83,166.8,14.9876]
[1729513326253,29.771384,166.82,166.77,20.9863]
[1729513326760,16.3929,166.83,166.75,29.9838]
[1729513326965,16.3929,166.83,166.8,5.9951]
[1729513330862,23.776884,166.86,166.76,29.9832]
[1729513331068,16.1029,166.87,166.84,5.9934]
[1729513331367,5.992,166.89,166.84,5.9934]
[1729513333791,23.776884,166.88,166.84,5.9934]
[1729513335685,23.776884,166.9,166.84,14.9839]
[1729513335990,23.776884,166.88,166.84,20.9776]
[1729513340085,29.769984,166.86,166.81,5.9947]
[1729513340395,29.769984,166.86,166.8,5.9951]
[1729513341267,5.9934,166.85,166.8,5.9951]
[1729513341663,29.769984,166.86,166.81,5.9948]
[1729513341866,12.04606453,166.9,166.85,5.9931]
[1729513342063,5.9916,166.9,166.84,20.9777]
[1729513342486,5.992,166.89,166.84,20.9777]
[1729513343191,15.4458,166.91,166.88,5.9922]
[1729513343488,5.9898,166.95,166.88,14.9803]
[1729513343694,5.9898,166.95,166.89,5.9917]
[1729513344481,1.04221301,166.96,166.89,5.9917]
[1729513344686,1.04221301,166.96,166.84,0.1]
[1729513345003,5.9899,166.95,166.9,5.9912]
[1729513347789,5.9903,166.94,166.89,14.9792]
[1729513348895,5.9903,166.94,166.89,20.9711]
[1729513349081,23.776884,166.96,166.89,14.9792]
[1729513349281,5.9905,166.93,166.89,14.9792]
[1729513349492,5.9901,166.95,166.89,14.9792]
[1729513349987,5.9901,166.95,166.89,20.9708]
[1729513350366,5.9901,166.95,166.9,5.9915]
[1729513350993,29.766284,166.96,166.87,29.9622]
[1729513351192,29.766284,166.96,166.9,5.9912]
[1729513351382,29.766284,166.96,166.9,20.9699]
[1729513351769,5.9899,166.95,166.9,20.9699]
[1729513357000,5.9902,166.94,166.9,20.9699]
[1729513357494,23.776884,166.96,166.87,5.9924]
[1729513357699,23.776884,166.96,166.86,14.9819]
[1729513357874,5.9919,166.89,166.85,5.9931]
[1729513358498,5.9919,166.89,166.84,5.9937]
[1729513358800,5.9924,166.88,166.83,20.979]
[1729513359102,5.9923,166.88,166.83,20.979]
[1729513360300,5.9933,166.86,166.81,5.9945]
[1729513360506,21.5909,166.9,166.8,14.9877]
[1729513360507,5.9936,166.85,166.8,14.9877]
[1729513360800,5.9931,166.86,166.81,5.9947]
[1729513362481,5.9934,166.85,166.8,20.9828]
[1729513365004,23.776884,166.89,166.77,5.9962]
[1729513365203,5.9944,166.83,166.77,5.9962]
[1729513369324,5.9944,166.83,166.73,50.9806]
[1729513369613,5.9944,166.83,166.77,5.9959]
[1729513369993,5.9944,166.83,166.78,5.9958]
[1729513371523,1.04268388,166.84,166.74,0.1]
[1729513371816,5.9934,166.85,166.8,5.995]
[1729513373721,5.9919,166.9,166.78,0.2]
[1729513373912,5.9919,166.9,166.84,5.9936]
[1729513374121,14.9765,166.93,166.84,5.9936]
[1729513374418,5.992,166.89,166.84,5.9936]
[1729513379316,14.9765,166.93,166.85,5.993]
[1729513379317,5.9912,166.91,166.85,5.993]
[1729513379493,23.776884,166.9,166.85,5.993]
[1729513379815,5.9917,166.9,166.85,5.993]
[1729513381713,5.9922,166.89,166.84,14.9837]
[1729513381920,5.9925,166.88,166.84,14.9837]
[1729513382508,5.9927,166.87,166.82,5.9944]
[1729513385323,16.2613,166.92,166.76,4.77]
[1729513385625,5.9915,166.91,166.86,20.9753]
[1729513392627,22.58364535,166.97,166.92,5.9907]
[1729513392838,5.9898,166.95,166.91,14.9778]
[1729513393335,15.5523,166.97,166.9,5.9913]
[1729513393336,16.59420278,166.97,166.9,5.9913]
[1729513393635,5.9902,166.94,166.89,5.9919]
[1729513393932,5.9902,166.94,166.9,5.9915]
[1729513397434,15.5523,166.97,166.89,20.9717]
[1729513397641,29.767484,166.93,166.89,14.9798]
[1729513401116,23.776884,166.93,166.9,5.9915]
[1729513401316,5.9902,166.94,166.9,5.9915]
[1729513403434,15.5523,166.97,166.92,5.9908]
[1729513403827,21.5416,166.97,166.92,5.9908]
[1729513404433,15.5523,166.97,166.91,14.9777]
[1729513404640,5.9897,166.96,166.91,20.9689]
[1729513405238,23.776884,166.96,166.88,29.9616]
[1729513405447,23.776884,166.96,166.92,5.9905]
[1729513406827,21.5414,166.97,166.93,5.9904]
[1729513409120,15.5523,166.97,166.93,5.9904]
[1729513410744,15.5523,166.97,166.85,0.2]
[1729513410941,15.5523,166.97,166.95,5.9897]
[1729513411123,15.5523,166.97,166.87,0.1]
[1729513411323,15.5523,166.97,166.94,5.99]
[1729513413760,15.5523,166.97,166.93,14.9759]
[1729513413923,21.5415,166.97,166.93,14.9759]
[1729513414130,21.5415,166.97,166.93,20.9662]
[1729513417933,5.99,166.95,166.91,5.9912]
[1729513419453,5.99,166.95,166.91,5.9912]
[1729513420833,23.776884,166.96,166.87,14.9817]
[1729513421037,5.9903,166.94,166.9,5.9914]
[1729513421234,23.776884,166.96,166.9,5.9914]
[1729513421533,5.9898,166.95,166.9,5.9914]
[1729513421728,23.776884,166.96,166.89,20.9713]
[1729513421932,5.9906,166.93,166.89,20.9713]
[1729513422555,5.9895,166.96,166.91,5.9911]
[1729513422742,5.9895,166.96,166.92,5.9907]
[1729513430367,21.5414,166.97,166.93,5.9904]
[1729513430579,21.5414,166.97,166.94,5.9901]
[1729513430580,15.5523,166.97,166.94,5.9901]
[1729513431361,15.5523,166.97,166.93,14.9758]
[1729513431658,21.5415,166.97,166.93,14.9758]
[1729513434870,21.5414,166.97,166.93,20.966]
[1729513435271,21.5414,166.97,166.93,14.9758]
[1729513444177,15.5523,166.97,166.93,14.9758]
[1729513444478,5.9894,166.96,166.93,14.9758]
[1729513444660,15.5523,166.97,166.93,14.9758]
[1729513446374,5.9894,166.96,166.93,14.9758]
[1729513449477,5.9894,166.96,166.9,14.9787]
[1729513449667,5.9894,166.96,166.92,5.9908]
[1729513450289,5.9899,166.95,166.91,14.978]
[1729513451380,5.9899,166.95,166.91,20.9692]
[1729513457662,1.04184236,166.98,166.89,32.4598]
[1729513457869,1.04184236,166.98,166.94,5.9899]
[1729513458086,7.03064236,166.98,166.94,5.9899]
[1729513459171,5.9891,166.97,166.93,20.966]
[1729513459591,7.03064236,166.98,166.93,20.966]
[1729513459769,5.9891,166.97,166.93,20.966]
[1729513462058,1.04184236,166.98,166.94,5.9898]
[1729513464982,7.03064236,166.98,166.94,5.9898]
[1729513467377,1.04184236,166.98,166.89,32.4598]
[1729513467582,1.04184236,166.98,166.97,5.989]
[1729513467888,5.9878,167.01,166.97,5.989]
[1729513474281,5.9878,167.01,166.96,20.9625]
[1729513474480,23.776884,167.01,166.93,20.9665]
[1729513474687,5.989,166.98,166.93,20.9665]
[1729513475792,5.989,166.98,166.94,5.99]
[1729513479793,23.776884,167.01,166.94,5.99]
[1729513480098,5.9884,166.99,166.94,5.99]
[1729513481098,5.9884,166.99,166.94,14.9752]
[1729513481280,5.9881,167.0,166.95,5.9896]
[1729513481686,29.764784,167.01,166.96,5.9892]
[1729513481884,29.764784,167.01,166.95,14.974]
[1729513482091,29.764784,167.01,166.97,5.989]
[1729513482699,16.1707,167.02,166.99,5.988]
[1729513483285,16.1707,167.02,166.96,5.8297346]
[1729513483602,16.1707,167.02,166.98,5.9887]
[1729513485387,22.2882,167.07,166.93,6.05341267]
[1729513485601,28.2738,167.07,167.02,5.9871]
[1729513486280,28.2738,167.07,166.98,5.82656508]
[1729513486484,28.2738,167.07,167.03,5.9868]
[1729513486485,22.2882,167.07,167.03,5.9868]
[1729513486886,16.0712,167.07,167.04,5.9864]
[1729513487485,6.6074999,167.09,167.04,5.9864]
[1729513498313,5.9851,167.08,167.04,5.9864]
[1729513498908,0.6226999,167.09,167.03,14.9671]
[1729513499220,0.6226999,167.09,166.99,2.5]
[1729513499400,6.6075999,167.09,167.04,5.9864]
[1729513500217,0.6226999,167.09,167.05,5.9859]
[1729513500897,5.9853,167.08,167.04,14.966]
[1729513501099,5.9855,167.07,167.03,5.9866]
[1729513502322,5.9869,167.04,166.99,5.9881]
[1729513502816,16.0979,167.05,166.99,5.9881]
[1729513503123,5.9869,167.03,166.99,5.9881]
[1729513505094,5.9869,167.03,166.98,14.9714]
[1729513505095,5.9876,167.02,166.98,14.9714]
[1729513509828,5.9865,167.04,166.99,5.9882]
[1729513511725,16.0979,167.05,166.95,23.876884]
[1729513511927,16.0979,167.05,166.97,5.989]
[1729513512128,16.0979,167.05,167.02,5.9873]
[1729513512811,5.9855,167.07,167.02,5.9873]
[1729513513730,29.761984,167.08,167.04,5.9865]
[1729513514027,29.761984,167.08,167.03,5.9869]
[1729513514942,5.9856,167.07,167.03,5.9869]
[1729513516913,5.9862,167.05,167.01,5.9873]
[1729513517828,23.776884,167.08,167.01,5.9873]
[1729513518016,5.9859,167.06,167.01,5.9873]
[1729513519310,23.776884,167.08,167.01,5.9873]
[1729513519514,23.776884,167.08,167.0,14.97]
[1729513519820,5.9867,167.04,167.0,14.97]
[1729513524323,23.776884,167.08,167.0,14.97]
[1729513524531,5.9862,167.06,167.01,5.9873]
[1729513526246,5.9863,167.05,167.0,20.9579]
[1729513526652,37.4973999,167.09,166.98,5.9885]
[1729513526653,38.739684,167.08,166.98,5.9885]
[1729513526970,38.739684,167.08,166.99,5.9883]
[1729513527626,5.9876,167.02,166.97,20.9611]
[1729513529551,5.9876,167.02,166.98,5.9887]
[1729513530441,5.988,167.01,166.97,20.9613]
[1729513531252,28.361,167.03,166.98,5.9886]
[1729513534653,5.9873,167.02,166.97,20.9613]
[1729513535739,5.9873,167.02,166.97,14.9723]
[1729513535942,5.9873,167.02,166.98,5.9886]
[1729513539151,22.3739,167.03,166.99,5.9881]
[1729513539358,22.3739,167.03,166.94,44.9262]
[1729513539359,23.776884,167.06,166.93,3.63229526]
[1729513539935,5.9862,167.05,167.01,5.9876]
[1729513540840,5.9868,167.04,166.98,5.9884]
[1729513542162,5.9868,167.04,166.99,5.9883]
[1729513550456,5.9873,167.02,166.98,20.9603]
[1729513550661,23.776884,167.06,166.98,20.9603]
[1729513551844,5.9872,167.03,166.98,20.9603]
[1729513552358,23.776884,167.06,166.95,29.949]
[1729513552550,23.776884,167.06,167.01,5.9876]
[1729513552551,5.9865,167.05,167.01,5.9876]
[1729513553145,5.9859,167.06,167.01,5.9876]
[1729513553540,22.5581,167.07,167.01,5.9876]
[1729513553748,5.9862,167.05,167.01,5.9876]
[1729513554339,7.02739952,167.05,167.01,5.9876]
[1729513555147,5.9862,167.05,167.01,5.9876]
[1729513555342,7.027403,167.05,167.01,5.9876]
[1729513555964,5.9862,167.05,167.01,5.9876]
[1729513556550,5.9859,167.06,167.02,5.9872]
[1729513557053,22.5581,167.07,167.02,5.9872]
[1729513557249,28.5437,167.07,167.02,5.9872]
[1729513558859,28.5437,167.07,167.01,14.9687]
[1729513559058,28.5437,167.07,167.03,5.9869]
[1729513559862,22.5581,167.07,167.03,5.9869]
[1729513560358,28.5436,167.07,167.03,5.9869]
[1729513568458,5.9858,167.06,167.02,5.9872]
[1729513581484,22.5581,167.07,166.97,29.9454]
[1729513581667,23.776884,167.04,166.99,5.9881]
[1729513581867,5.9868,167.04,166.99,5.9881]
[1729513582382,23.776884,167.06,166.98,14.9713]
[1729513582678,5.9872,167.03,166.99,5.9883]
[1729513583380,5.9872,167.03,166.98,20.92846006]
[1729513583381,5.9872,167.03,166.98,26.91706006]
[1729513583574,5.9875,167.02,166.98,26.91706006]
[1729513583785,5.9875,167.02,166.98,20.9599]
[1729513584281,5.9877,167.01,166.97,5.95716006]
[1729513585684,5.988,167.0,166.97,5.95716006]
[1729513586973,5.988,167.0,166.96,11.94646006]
[1729513587380,5.988,167.0,166.96,11.94917896]
[1729513587883,5.988,167.0,166.96,5.9893]
[1729513589381,5.9884,166.99,166.95,26.92347896]
[1729513589583,29.764484,167.01,166.95,20.93397896]
[1729513589887,5.9885,166.99,166.95,20.93397896]
[1729513590190,5.9885,166.99,166.95,14.9741]
[1729513591763,5.9885,166.99,166.94,5.9901]
[1729513591764,23.776884,166.98,166.93,9.48877989]
[1729513592086,5.9894,166.96,166.92,26.92388463]
[1729513592281,5.9892,166.97,166.92,26.92388463]
[1729513592979,5.9892,166.97,166.92,20.9674]
[1729513596683,21.7865,166.97,166.92,20.9674]
[1729513598690,5.9894,166.96,166.92,20.9674]
[1729513600491,23.776884,166.95,166.89,14.9794]
[1729513600793,5.9906,166.93,166.89,14.9794]
[1729513602987,5.9908,166.92,166.89,14.9794]
[1729513605695,5.9915,166.91,166.88,3.53335359]
[1729513605874,5.9919,166.9,166.86,14.9822]
[1729513611701,5.992,166.89,166.86,14.9822]
[1729513615200,29.768684,166.9,166.86,14.9822]
[1729513615692,6.1669,166.91,166.88,5.9922]
[1729513616401,15.7587,166.92,166.87,14.9808]
[1729513616585,15.7587,166.92,166.88,5.9923]
[1729513617102,15.7587,166.92,166.89,5.9916]
[1729513617681,15.7587,166.92,166.84,29.9688]
[1729513618584,15.7587,166.92,166.89,5.9918]
[1729513621707,23.776884,166.93,166.89,5.9918]
[1729513623703,23.776884,166.93,166.9,5.9915]
[1729513624931,23.776884,166.94,166.89,20.9716]
[1729513625090,5.9907,166.93,166.89,20.9716]
[1729513626214,6.6101,166.95,166.91,5.9909]
[1729513626719,6.6101,166.95,166.92,5.9908]
[1729513627600,6.6101,166.95,166.9,14.9782]
[1729513627908,6.6101,166.95,166.91,5.9911]
[1729513630402,6.6101,166.95,166.92,5.9906]
[1729513630716,16.2496,166.96,166.93,5.9904]
[1729513632399,16.2496,166.96,166.92,20.9678]
[1729513635129,23.776884,166.95,166.88,44.9416]
[1729513635420,5.9908,166.93,166.89,5.9917]
[1729513637496,23.776884,166.95,166.88,14.98]
[1729513637800,23.776884,166.95,166.83,5.9938]
[1729513637801,60.237684,166.93,166.83,5.9938]
[1729513638002,5.9923,166.89,166.83,5.9938]
[1729513638297,23.776884,166.91,166.82,20.9798]
[1729513638502,5.993,166.87,166.82,20.9798]
[1729513643905,29.770084,166.86,166.82,20.9798]
[1729513644105,5.9937,166.84,166.79,5.9954]
[1729513644514,5.9947,166.82,166.78,14.989]
[1729513645335,5.9948,166.81,166.77,5.9962]
[1729513646213,5.9944,166.82,166.77,5.9962]
[1729513646625,5.9944,166.82,166.78,5.9958]
[1729513652302,5.9934,166.85,166.8,5.9949]
[1729513652503,23.776884,166.84,166.73,0.1]
[1729513652927,5.993,166.86,166.81,5.9945]
[1729513653139,21.7371,166.87,166.82,5.9941]
[1729513654530,23.776884,166.86,166.82,5.9941]
[1729513655833,29.769884,166.86,166.82,5.9941]
[1729513656931,29.769884,166.86,166.78,14.9893]
[1729513656932,23.776884,166.84,166.78,14.9893]
[1729513657132,34.9835,166.85,166.74,29.9868]
[1729513657321,5.9952,166.8,166.76,5.9966]
[1729513657822,5.9948,166.81,166.77,5.9962]
[1729513662435,1.04281661,166.84,166.75,29.985]
[1729513662629,7.03681661,166.84,166.8,5.995]
[1729513662838,5.994,166.84,166.8,5.995]
[1729513664439,29.770984,166.83,166.79,20.984]
[1729513665623,29.770984,166.83,166.79,14.9886]
[1729513666747,5.9945,166.82,166.78,5.9958]
[1729513668446,5.9949,166.81,166.76,20.9874]
[1729513669054,21.6556,166.81,166.76,20.9874]
[1729513670940,23.776884,166.8,166.74,14.9933]
[1729513671750,5.9962,166.78,166.74,20.9906]
[1729513671928,23.776884,166.8,166.72,5.9978]
[1729513671929,5.9964,166.77,166.72,5.9978]
[1729513673345,5.9967,166.76,166.72,5.9978]
[1729513673547,5.9972,166.75,166.71,14.9956]
[1729513674131,27.7973,166.75,166.71,14.9956]
[1729513675363,23.776884,166.74,166.71,14.9956]
[1729513675554,29.774284,166.74,166.71,14.9956]
[1729513677755,23.776884,166.74,166.71,14.9956]
[1729513680560,29.774284,166.74,166.71,14.9956]
[1729513681258,29.774284,166.74,166.7,5.9987]
[1729513683059,23.776884,166.74,166.68,20.9976]
[1729513683444,5.9977,166.73,166.68,20.9976]
[1729513683657,23.776884,166.72,166.68,20.9976]
[1729513685663,29.774984,166.72,166.68,20.9976]
[1729513685947,5.9986,166.71,166.67,9.53760553]
[1729513686149,5.9986,166.71,166.67,5.9998]
[1729513687762,23.776884,166.73,166.66,15.0006]
[1729513687935,5.9986,166.71,166.66,21.0008]
[1729513689342,5.9986,166.71,166.67,5.9998]
[1729513698365,23.776884,166.69,166.66,21.0008]
[1729513699156,23.776884,166.69,166.66,15.0006]
[1729513699964,29.776184,166.69,166.65,6.0004]
[1729513700967,5.9983,166.72,166.67,5.9997]
[1729513701159,29.775284,166.71,166.67,5.9997]
[1729513702070,29.775284,166.71,166.66,20.9999]
[1729513702566,5.999,166.7,166.66,14.9998]
[1729513703065,5.999,166.7,166.66,20.9999]
[1729513704279,23.776884,166.71,166.66,14.9998]
[1729513704455,29.775384,166.71,166.67,5.9997]
[1729513704848,23.776884,166.71,166.67,5.9997]
[1729513705049,29.775484,166.71,166.67,5.9997]
[1729513705567,1.04240851,166.74,166.72,5.998]
[1729513705765,1.04240851,166.74,166.65,15.0015]
[1729513706069,5.9963,166.77,166.64,2.6]
[1729513706564,22.0545,166.79,166.64,2.6]
[1729513706872,5.9961,166.78,166.73,5.9974]
[1729513707060,28.0501,166.79,166.74,5.9973]
[1729513707664,15.6272,166.79,166.7,8.4988]
[1729513707842,5.9945,166.82,166.7,2.5]
[1729513708049,5.9945,166.82,166.78,5.9958]
[1729513708346,5.9945,166.82,166.77,5.9961]
[1729513709158,23.776884,166.81,166.77,5.9961]
[1729513717571,5.9948,166.81,166.77,5.9961]
[1729513717770,23.776884,166.82,166.72,29.9904]
[1729513717962,5.9959,166.78,166.73,5.9974]
[1729513718670,5.9958,166.79,166.74,5.9973]
[1729513718873,23.776884,166.81,166.71,29.9922]
[1729513719172,23.776884,166.79,166.75,5.9969]
[1729513720077,29.772384,166.79,166.75,5.9969]
[1729513722772,23.776884,166.79,166.75,5.9968]
[1729513723669,29.772384,166.79,166.75,5.9968]
[1729513725866,29.772384,166.79,166.73,20.9917]
[1729513725867,5.9962,166.78,166.73,20.9917]
[1729513726075,23.776884,166.79,166.73,20.9917]
[1729513726076,5.9962,166.77,166.73,20.9917]
[1729513726859,5.9962,166.77,166.73,14.9943]
[1729513727072,5.9962,166.77,166.73,20.9919]
[1729513727961,5.9959,166.78,166.74,5.9972]
[1729513729682,22.386,166.83,166.68,30.0976]
[1729513729987,5.9953,166.8,166.76,5.9966]
[1729513730353,22.386,166.83,166.72,2.5]
[1729513730582,5.9946,166.82,166.78,5.9957]
[1729513730880,22.386,166.83,166.72,2.5]
[1729513730881,28.3801,166.83,166.79,5.9955]
[1729513731489,28.3801,166.83,166.78,5.9958]
[1729513732473,5.9945,166.82,166.78,5.9958]
[1729513735861,28.3802,166.83,166.78,5.9956]
[1729513736062,28.3802,166.83,166.78,5.9958]
[1729513737880,5.9945,166.82,166.78,5.9958]
[1729513738065,23.776884,166.85,166.74,5.0]
[1729513738264,5.994,166.84,166.79,5.9953]
[1729513738581,5.994,166.84,166.75,29.985]
[1729513738582,5.994,166.84,166.78,14.9891]
[1729513739075,5.994,166.84,166.79,5.9952]
[1729513739269,5.9934,166.85,166.81,5.9947]
[1729513739487,5.9926,166.87,166.83,5.9941]
[1729513739785,5.9924,166.88,166.84,5.9935]
[1729513741767,23.776884,166.88,166.8,20.9824]
[1729513741972,5.9933,166.86,166.81,5.9947]
[1729513743981,23.776884,166.88,166.81,5.9947]
[1729513744289,5.9934,166.85,166.8,14.9876]
[1729513744467,5.9934,166.85,166.8,20.9826]
[1729513744670,5.9937,166.84,166.8,20.9826]
[1729513746091,5.9934,166.85,166.8,20.9826]
[1729513746391,5.9934,166.85,166.81,5.9948]
[1729513759607,5.9924,166.88,166.8,5.9952]
[1729513759781,5.9924,166.88,166.84,5.9937]
[1729513759979,12.4378,166.89,166.84,5.9937]
[1729513760399,12.4378,166.89,166.85,5.9934]
[1729513760983,6.4458,166.89,166.79,29.9778]
[1729513761185,22.6355,166.9,166.85,5.9932]
[1729513761378,16.6437,166.9,166.85,5.9932]
[1729513761595,5.992,166.89,166.85,5.9932]
[1729513764290,16.6437,166.9,166.84,14.9841]
[1729513764498,5.9928,166.87,166.83,5.9938]
[1729513770005,5.9923,166.88,166.83,14.9852]
[1729513770302,5.9923,166.88,166.83,20.979]
[1729513773398,23.776884,166.89,166.83,20.979]
[1729513773399,5.9927,166.87,166.83,20.979]
[1729513777103,16.6437,166.9,166.82,29.9724]
[1729513777512,22.6353,166.9,166.86,5.9929]
[1729513780598,16.6437,166.9,166.86,5.9929]
[1729513780911,22.6354,166.9,166.86,5.9929]
[1729513783686,16.6437,166.9,166.79,35.1778]
[1729513783909,16.6437,166.9,166.87,5.9923]
[1729513784111,12.5193,166.93,166.81,0.2]
[1729513784592,12.5193,166.93,166.82,20.9806]
[1729513784793,12.5193,166.93,166.88,5.992]
[1729513796198,6.5288,166.93,166.85,29.967]
[1729513796401,22.6241,166.94,166.89,5.9916]
[1729513799125,22.6241,166.94,166.9,5.9913]
[1729513800756,16.6337,166.94,166.91,5.991]
[1729513800898,5.9898,166.95,166.91,5.991]
[1729513803220,5.9898,166.95,166.9,14.9789]
[1729513803418,5.9907,166.93,166.88,5.9921]
[1729513803723,5.9909,166.92,166.88,5.9921]
[1729513804221,15.1944,166.94,166.87,14.9813]
[1729513804222,23.776884,166.93,166.87,14.9813]
[1729513804421,5.9914,166.91,166.87,14.9813]
[1729513804816,5.9914,166.91,166.87,20.9739]
[1729513805120,15.1944,166.94,166.88,14.9807]
[1729513805329,5.9905,166.93,166.89,5.9917]
[1729513811028,5.9905,166.93,166.88,20.9729]
[1729513812117,5.9915,166.91,166.86,5.9927]
[1729513812313,5.9915,166.91,166.82,29.9724]
[1729513812635,5.992,166.89,166.85,20.9763]
[1729513813015,23.776884,166.91,166.85,14.983]
[1729513813216,5.9922,166.89,166.85,14.983]
[1729513814525,15.128,166.9,166.87,5.9925]
[1729513814710,12.3134,166.92,166.87,5.9925]
[1729513815534,6.3222,166.92,166.87,5.9925]
[1729513815711,5.9913,166.91,166.87,5.9925]
[1729513818933,12.3133,166.92,166.87,5.9924]
[1729513820041,6.3222,166.92,166.87,5.9924]
[1729513820336,5.9913,166.91,166.87,5.9924]
[1729513822228,12.3131,166.92,166.88,5.9922]
[1729513825731,6.3222,166.92,166.87,14.9816]
[1729513826049,6.3222,166.92,166.82,29.9724]
[1729513826342,5.9919,166.89,166.85,5.9933]
[1729513828034,5.9915,166.91,166.87,5.9925]
[1729513828622,15.9123,166.94,166.84,0.1]
[1729513828826,15.9123,166.94,166.89,5.9916]
[1729513829428,12.57744836,166.97,166.92,5.9907]
[1729513829627,12.57744836,166.97,166.91,14.9777]
[1729513829628,18.56654836,166.97,166.87,5.9926]
[1729513829934,5.9895,166.96,166.91,5.9911]
[1729513830841,5.9898,166.95,166.91,5.9911]
[1729513833954,5.9906,166.93,166.88,5.992]
[1729513834122,5.9902,166.94,166.89,5.9919]
[1729513837341,23.776884,166.9,166.78,36.21283031]
[1729513837533,23.776884,166.9,166.78,29.9792]
[1729513838150,5.9931,166.86,166.8,14.988]
[1729513838443,6.1007,166.88,166.8,14.988]
[1729513838666,5.9937,166.85,166.8,14.988]
[1729513838946,5.9938,166.84,166.79,5.9954]
[1729513839543,22.0953,166.84,166.79,5.9954]
[1729513839851,22.0953,166.84,166.77,14.9903]
[1729513839852,5.9943,166.83,166.77,20.9863]
[1729513841855,5.9943,166.83,166.78,5.9958]
[1729513842224,16.1015,166.84,166.73,40.46817583]
[1729513842428,16.1015,166.84,166.81,5.9947]
[1729513842654,5.9935,166.85,166.81,5.9947]
[1729513843031,5.9935,166.85,166.74,0.1]
[1729513843227,5.9935,166.85,166.8,5.9951]
[1729513843433,5.9926,166.87,166.81,5.9948]
[1729513843733,5.9931,166.86,166.81,5.9948]
[1729513852548,23.776884,166.87,166.79,14.9882]
[1729513852960,5.9944,166.83,166.79,14.9882]
[1729513853278,38.759084,166.87,166.79,14.9882]
[1729513853645,5.9945,166.82,166.79,14.9882]
[1729513854154,5.9945,166.82,166.78,5.9958]
[1729513854369,5.9949,166.81,166.76,20.9875]
[1729513854546,5.9953,166.8,166.76,20.9875]
[1729513854750,5.9953,166.8,166.76,14.9912]
[1729513854948,12.5875,166.81,166.77,5.9962]
[1729513863577,5.9963,166.77,166.69,2.5]
[1729513863745,23.776884,166.79,166.7,7.97]
[1729513863948,6.5927,166.81,166.7,7.97]